bitfinex-derivatives/quotes_SOLF0:USTF0_20250425
["timestamp","ask_amount","ask_price","bid_price","bid_amount"]
[1745624146027,23.32,150.75,150.72,7.33152032]
[1745624146226,29.9491,150.75,150.74,7.33152032]
[1745624146526,6.6291,150.75,150.74,7.33152032]
[1745624148629,7.33152032,150.77,150.7,23.32]
[1745624148827,7.33152032,150.75,150.7,7.33152032]
[1745624149431,6.6304,150.71,150.7,7.33152032]
[1745624149929,6.6302,150.72,150.7,7.33152032]
[1745624150326,7.33152032,150.75,150.7,7.33152032]
[1745624151429,30.65152032,150.75,150.7,7.33152032]
[1745624152030,7.33152032,150.75,150.7,7.33152032]
[1745624152229,30.65152032,150.75,150.7,7.33152032]
[1745624152530,7.33152032,150.75,150.7,7.33152032]
[1745624152730,6.6302,150.72,150.7,7.33152032]
[1745624153930,6.6304,150.71,150.7,7.33152032]
[1745624154529,6.6304,150.71,150.68,6.6316]
[1745624154731,6.6304,150.71,150.7,7.33152032]
[1745624155230,6.6302,150.72,150.7,7.33152032]
[1745624156236,23.32,150.75,150.7,13.96242032]
[1745624156529,23.32,150.75,150.73,7.33152032]
[1745624156727,30.65152032,150.78,150.73,7.33152032]
[1745624156931,6.6295,150.74,150.73,7.33152032]
[1745624157123,30.65152032,150.78,150.73,7.33152032]
[1745624159032,7.33152032,150.76,150.7,6.6307]
[1745624159330,7.33152032,150.76,150.71,7.33152032]
[1745624159827,7.33152032,150.76,150.69,6.6311]
[1745624160032,7.33152032,150.74,150.69,7.33152032]
[1745624160334,7.33152032,150.76,150.71,7.33152032]
[1745624160534,6.6302,150.72,150.71,7.33152032]
[1745624167139,6.6298,150.73,150.71,7.33152032]
[1745624168440,6.63,150.72,150.71,7.33152032]
[1745624169142,6.6298,150.73,150.71,7.33152032]
[1745624169641,7.33152032,150.76,150.71,7.33152032]
[1745624169642,6.63,150.72,150.71,7.33152032]
[1745624170244,6.6305,150.71,150.68,29.9516]
[1745624170445,6.6305,150.71,150.7,7.33152032]
[1745624171345,6.6302,150.72,150.7,7.33152032]
[1745624173143,6.6304,150.71,150.7,7.33152032]
[1745624174441,6.6302,150.72,150.7,7.33152032]
[1745624174641,7.33152032,150.76,150.7,7.33152032]
[1745624175744,6.6304,150.71,150.7,7.33152032]
[1745624177441,6.6302,150.72,150.7,7.33152032]
[1745624177641,7.33152032,150.76,150.7,7.33152032]
[1745624178043,6.6303,150.72,150.7,7.33152032]
[1745624178338,7.33152032,150.76,150.7,7.33152032]
[1745624178539,6.6304,150.71,150.7,7.33152032]
[1745624182445,6.6302,150.72,150.7,7.33152032]
[1745624182644,6.6302,150.72,150.71,7.33152032]
[1745624186749,6.6298,150.73,150.71,7.33152032]
[1745624187052,6.6298,150.73,150.66,2.0146]
[1745624187053,7.33152032,150.72,150.66,2.0146]
[1745624187249,7.33152032,150.69,150.63,7.33152032]
[1745624187848,6.6326,150.67,150.63,13.96532032]
[1745624188046,6.6326,150.67,150.65,7.33152032]
[1745624192460,6.6326,150.66,150.65,7.33152032]
[1745624192657,31.11152032,150.69,150.63,7.33152032]
[1745624193058,6.6334,150.65,150.62,1.9998]
[1745624193366,31.11152032,150.69,150.63,7.33152032]
[1745624193655,23.78,150.69,150.62,1.9998]
[1745624193860,23.78,150.72,150.67,7.33152032]
[1745624194061,23.78,150.72,150.69,7.33152032]
[1745624194261,30.4102,150.72,150.69,7.33152032]
[1745624195459,23.78,150.72,150.69,13.96262032]
[1745624195961,23.78,150.72,150.69,7.33152032]
[1745624196262,23.78,150.72,150.71,7.33152032]
[1745624196463,6.6293,150.74,150.71,7.33152032]
[1745624196763,23.78,150.75,150.71,7.33152032]
[1745624197665,6.6292,150.74,150.71,7.33152032]
[1745624198262,23.78,150.75,150.73,13.96072032]
[1745624198462,6.6284,150.76,150.74,7.33152032]
[1745624201866,6.6287,150.75,150.74,7.33152032]
[1745624202368,6.6279,150.77,150.74,13.96062032]
[1745624202866,6.6283,150.76,150.74,7.33152032]
[1745624203668,6.6283,150.76,150.74,13.96052032]
[1745624204062,6.6283,150.76,150.74,7.33152032]
[1745624205472,6.6283,150.76,150.75,7.33152032]
[1745624205667,6.628,150.77,150.75,7.33152032]
[1745624206572,6.6282,150.76,150.75,7.33152032]
[1745624213979,6.6279,150.77,150.75,7.33152032]
[1745624216778,30.4075,150.78,150.75,13.96012032]
[1745624217077,6.6275,150.78,150.75,13.96012032]
[1745624217378,6.6278,150.77,150.75,13.96012032]
[1745624220081,6.6278,150.77,150.75,7.33152032]
[1745624220480,6.6275,150.78,150.75,7.33152032]
[1745624220681,6.6275,150.78,150.75,13.95982032]
[1745624220880,7.33152032,150.8,150.75,13.95982032]
[1745624221078,6.628,150.77,150.75,13.95982032]
[1745624221279,31.05152032,150.81,150.76,13.95952032]
[1745624221480,31.05152032,150.81,150.77,7.33152032]
[1745624221679,6.6266,150.8,150.77,13.95922032]
[1745624222582,6.6271,150.79,150.77,7.33152032]
[1745624223587,6.6274,150.78,150.77,7.33152032]
[1745624223983,23.72,150.81,150.77,13.95912032]
[1745624224177,23.72,150.81,150.77,7.33152032]
[1745624225285,6.6274,150.78,150.77,7.33152032]
[1745624225485,6.6274,150.78,150.76,7.33152032]
[1745624227287,6.6274,150.78,150.76,13.95972032]
[1745624228486,6.6274,150.78,150.76,7.33152032]
[1745624229788,6.6278,150.77,150.76,7.33152032]
[1745624233389,31.05152032,150.81,150.76,7.33152032]
[1745624233586,31.05152032,150.81,150.75,6.6285]
[1745624233786,31.05152032,150.81,150.76,7.33152032]
[1745624234588,6.6278,150.77,150.76,7.33152032]
[1745624237886,6.6275,150.78,150.76,7.33152032]
[1745624240491,6.6278,150.77,150.76,7.33152032]
[1745624244094,6.6276,150.78,150.76,7.33152032]
[1745624244291,31.05152032,150.81,150.76,7.33152032]
[1745624244592,6.6277,150.78,150.76,7.33152032]
[1745624246794,6.6278,150.77,150.76,7.33152032]
[1745624248296,6.6276,150.78,150.76,7.33152032]
[1745624249497,6.6276,150.78,150.76,13.95972032]
[1745624249795,23.72,150.81,150.76,7.33152032]
[1745624249996,23.72,150.81,150.77,6.6276]
[1745624250497,6.6268,150.8,150.78,7.33152032]
[1745624255704,6.6269,150.79,150.78,7.33152032]
[1745624256608,6.6267,150.8,150.78,13.95882032]
[1745624256809,6.6267,150.8,150.78,7.33152032]
[1745624258311,6.6269,150.79,150.78,7.33152032]
[1745624258612,23.72,150.81,150.78,7.33152032]
[1745624258813,6.6276,150.79,150.78,7.33152032]
[1745624259113,6.6276,150.79,150.76,7.33152032]
[1745624260314,6.6276,150.79,150.76,13.96022032]
[1745624261913,6.628,150.78,150.76,13.96022032]
[1745624262615,6.6278,150.79,150.76,13.96022032]
[1745624265018,6.6282,150.78,150.76,7.33152032]
[1745624268619,3.8877,150.85,150.76,7.33152032]
[1745624268822,3.8877,150.85,150.75,3.9667]
[1745624268823,23.34,150.84,150.79,7.33152032]
[1745624269621,6.6263,150.82,150.79,13.95892032]
[1745624272127,6.626,150.83,150.8,6.6269]
[1745624273019,6.626,150.83,150.81,6.6267]
[1745624273419,29.9654,150.84,150.81,7.33152032]
[1745624273623,30.67152032,150.87,150.81,7.33152032]
[1745624274123,6.6247,150.86,150.83,6.6255]
[1745624274422,6.6247,150.86,150.83,13.95702032]
[1745624275124,6.625,150.85,150.83,13.95702032]
[1745624275524,30.67152032,150.87,150.83,7.33152032]
[1745624277326,6.6252,150.85,150.83,7.33152032]
[1745624278127,6.6254,150.84,150.83,7.33152032]
[1745624279024,6.6251,150.85,150.83,7.33152032]
[1745624279523,30.67152032,150.87,150.83,7.33152032]
[1745624279827,6.6254,150.84,150.83,7.33152032]
[1745624280230,6.6259,150.83,150.82,7.33152032]
[1745624280727,6.6256,150.84,150.82,7.33152032]
[1745624281023,30.67152032,150.87,150.82,7.33152032]
[1745624281225,6.6258,150.83,150.82,7.33152032]
[1745624282526,6.6255,150.84,150.82,7.33152032]
[1745624282831,7.33152032,150.84,150.8,7.33152032]
[1745624283018,7.33152032,150.84,150.79,7.33152032]
[1745624283226,6.6269,150.81,150.79,7.33152032]
[1745624283419,477.24,150.88,150.78,7.33152032]
[1745624283420,7.33152032,150.82,150.78,7.33152032]
[1745624283821,6.6276,150.79,150.78,7.33152032]
[1745624284028,7.33152032,150.8,150.76,7.33152032]
[1745624284425,7.33152032,150.8,150.74,7.33152032]
[1745624284630,23.32,150.79,150.74,7.33152032]
[1745624284832,6.6287,150.77,150.74,13.96112032]
[1745624285331,6.6287,150.77,150.75,6.6293]
[1745624287333,6.6287,150.77,150.74,13.96112032]
[1745624287832,6.6287,150.77,150.75,6.6293]
[1745624290026,6.6287,150.77,150.74,13.96112032]
[1745624292634,6.629,150.76,150.73,6.63]
[1745624294537,7.33152032,150.78,150.72,7.33152032]
[1745624294731,7.33152032,150.76,150.72,7.33152032]
[1745624295437,7.33152032,150.76,150.71,7.33152032]
[1745624295635,7.33152032,150.74,150.7,7.33152032]
[1745624296535,13.96152032,150.74,150.71,6.631]
[1745624297835,6.63,150.74,150.71,6.631]
[1745624298036,23.34,150.75,150.73,7.33152032]
[1745624299238,29.9694,150.75,150.73,13.96142032]
[1745624299438,23.34,150.75,150.73,13.96142032]
[1745624301338,29.9693,150.75,150.73,7.33152032]
[1745624301836,29.9693,150.75,150.72,6.6305]
[1745624302138,29.9693,150.75,150.73,7.33152032]
[1745624303640,29.9693,150.75,150.73,13.96172032]
[1745624304139,30.67152032,150.78,150.74,6.6295]
[1745624305238,6.6285,150.77,150.74,6.6295]
[1745624305537,30.67152032,150.78,150.74,6.6295]
[1745624305841,6.6285,150.77,150.74,6.6295]
[1745624308441,6.6289,150.76,150.74,6.6295]
[1745624310043,6.6289,150.76,150.73,13.96152032]
[1745624311343,6.6286,150.77,150.73,7.33152032]
[1745624312041,6.6286,150.77,150.74,6.6296]
[1745624312336,6.629,150.76,150.74,6.6296]
[1745624312641,23.34,150.78,150.73,13.96152032]
[1745624312942,6.6291,150.76,150.73,13.96152032]
[1745624319648,7.33152032,150.77,150.71,7.33152032]
[1745624319949,7.33152032,150.75,150.71,7.33152032]
[1745624320447,7.33152032,150.75,150.7,6.6313]
[1745624320949,7.33152032,150.75,150.69,17.95532032]
[1745624321140,7.33152032,150.73,150.69,17.95532032]
[1745624321343,7.33152032,150.73,150.69,9.34642032]
[1745624321952,6.6313,150.71,150.69,9.34642032]
[1745624322350,6.6308,150.72,150.7,7.33152032]
[1745624328353,6.6308,150.72,150.7,13.96302032]
[1745624332752,37.30152032,150.74,150.71,6.6309]
[1745624333054,29.97,150.74,150.72,7.33152032]
[1745624333253,23.34,150.77,150.73,7.33152032]
[1745624333456,6.6291,150.76,150.74,7.33152032]
[1745624333756,23.34,150.77,150.73,7.33152032]
[1745624333952,7.33152032,150.76,150.71,7.33152032]
[1745624334250,7.33152032,150.75,150.71,7.33152032]
[1745624334448,6.6302,150.74,150.71,13.96222032]
[1745624334758,7.33152032,150.75,150.7,9.29712032]
[1745624334955,7.33152032,150.74,150.69,9.34642032]
[1745624335656,6.6309,150.72,150.69,15.97812032]
[1745624336157,6.6309,150.72,150.69,13.96322032]
[1745624336553,6.6311,150.71,150.69,13.96322032]
[1745624336857,7.33152032,150.73,150.69,13.96322032]
[1745624337061,7.33152032,150.74,150.69,13.96322032]
[1745624337256,6.6308,150.72,150.69,13.96322032]
[1745624338958,30.67152032,150.73,150.68,7.33152032]
[1745624339154,7.33152032,150.71,150.68,7.33152032]
[1745624339460,6.6319,150.7,150.68,7.33152032]
[1745624339959,7.33152032,150.71,150.68,7.33152032]
[1745624340162,7.33152032,150.71,150.67,13.96432032]
[1745624340361,7.33152032,150.71,150.66,13.96462032]
[1745624340656,6.6323,150.69,150.66,7.33152032]
[1745624341161,6.6329,150.67,150.65,7.33152032]
[1745624341355,6.6329,150.67,150.63,23.34]
[1745624341565,7.33152032,150.68,150.63,7.33152032]
[1745624341860,30.67152032,150.68,150.63,7.33152032]
[1745624342265,30.67152032,150.68,150.62,6.6348]
[1745624342458,30.67152032,150.68,150.63,6.6345]
[1745624342459,6.6335,150.66,150.63,6.6345]
[1745624346362,6.6338,150.65,150.63,6.6345]
[1745624346959,6.6338,150.65,150.62,13.96642032]
[1745624347159,6.6338,150.65,150.63,7.33152032]
[1745624350267,6.6335,150.66,150.63,13.96602032]
[1745624351565,6.6338,150.65,150.63,13.96602032]
[1745624351768,6.6338,150.65,150.63,7.33152032]
[1745624354666,6.6342,150.64,150.63,7.33152032]
[1745624356762,6.6339,150.65,150.63,7.33152032]
[1745624356969,23.34,150.68,150.64,7.33152032]
[1745624357167,23.34,150.68,150.65,7.33152032]
[1745624357367,6.6333,150.66,150.65,7.33152032]
[1745624357866,6.6333,150.66,150.64,7.33152032]
[1745624358569,6.6337,150.65,150.64,7.33152032]
[1745624359271,6.6335,150.66,150.64,7.33152032]
[1745624359771,6.6335,150.66,150.64,13.96572032]
[1745624361170,6.6337,150.65,150.64,7.33152032]
[1745624361370,23.34,150.68,150.64,7.33152032]
[1745624361573,6.6329,150.67,150.64,13.96562032]
[1745624361872,23.34,150.68,150.64,13.96562032]
[1745624362473,6.6336,150.66,150.64,13.96562032]
[1745624362773,6.6336,150.66,150.64,7.33152032]
[1745624363673,6.6336,150.66,150.64,13.96562032]
[1745624363972,6.6337,150.65,150.64,7.33152032]
[1745624365378,6.6342,150.64,150.63,7.33152032]
[1745624365579,30.67152032,150.68,150.63,7.33152032]
[1745624365779,6.634,150.65,150.62,13.96642032]
[1745624366679,6.6343,150.64,150.62,6.6349]
[1745624366879,6.6343,150.64,150.62,13.96642032]
[1745624368380,23.34,150.68,150.63,13.96602032]
[1745624368574,23.34,150.68,150.65,7.33152032]
[1745624368780,23.34,150.68,150.66,7.33152032]
[1745624368977,6.6323,150.69,150.66,13.96462032]
[1745624370480,6.6325,150.68,150.66,13.96462032]
[1745624371481,6.6325,150.68,150.66,7.33152032]
[1745624373385,6.6325,150.68,150.67,7.33152032]
[1745624378089,6.6323,150.69,150.67,7.33152032]
[1745624378989,6.6324,150.68,150.67,7.33152032]
[1745624382290,6.6321,150.69,150.67,7.33152032]
[1745624382490,6.6321,150.69,150.68,7.33152032]
[1745624383490,6.6327,150.68,150.67,7.33152032]
[1745624386193,6.6322,150.69,150.67,7.33152032]
[1745624387290,6.6324,150.68,150.67,7.33152032]
[1745624404702,6.6322,150.69,150.67,7.33152032]
[1745624405005,23.34,150.71,150.67,7.33152032]
[1745624405905,6.6324,150.68,150.67,7.33152032]
[1745624406100,7.33152032,150.7,150.65,7.33152032]
[1745624407604,7.33152032,150.69,150.65,7.33152032]
[1745624407807,6.6333,150.66,150.64,7.33152032]
[1745624408506,6.6333,150.66,150.64,13.96562032]
[1745624408707,6.6331,150.67,150.64,13.96562032]
[1745624409507,6.6331,150.67,150.65,7.33152032]
[1745624410110,6.6331,150.67,150.65,13.96522032]
[1745624410315,6.6331,150.67,150.65,6.6337]
[1745624410609,6.6331,150.67,150.65,13.96522032]
[1745624411112,6.6326,150.68,150.66,6.6332]
[1745624411409,6.6326,150.68,150.66,13.96472032]
[1745624411607,6.6326,150.68,150.66,7.33152032]
[1745624411803,6.6321,150.69,150.67,7.33152032]
[1745624412409,6.6317,150.7,150.67,13.96402032]
[1745624412610,30.67152032,150.71,150.67,13.96402032]
[1745624412811,23.34,150.71,150.68,7.33152032]
[1745624413812,6.6319,150.7,150.68,7.33152032]
[1745624414911,6.632,150.69,150.68,7.33152032]
[1745624415112,23.34,150.71,150.68,13.96392032]
[1745624415612,6.6318,150.7,150.68,13.96392032]
[1745624416011,6.6318,150.7,150.68,7.33152032]
[1745624417115,6.6318,150.7,150.68,13.96382032]
[1745624417415,6.6318,150.7,150.68,7.33152032]
[1745624418616,6.6318,150.7,150.68,13.96392032]
[1745624419212,6.6318,150.7,150.68,7.33152032]
[1745624420314,6.632,150.69,150.68,7.33152032]
[1745624423420,6.632,150.69,150.67,13.96422032]
[1745624424223,6.6318,150.7,150.67,13.96422032]
[1745624424718,6.6318,150.7,150.68,6.6323]
[1745624425019,6.632,150.69,150.67,7.33152032]
[1745624425221,23.34,150.71,150.68,7.33152032]
[1745624425923,23.34,150.71,150.68,13.96372032]
[1745624426116,23.34,150.71,150.68,7.33152032]
[1745624426315,29.9713,150.71,150.69,13.96322032]
[1745624426516,6.6313,150.71,150.69,13.96322032]
[1745624426819,6.6307,150.72,150.7,13.96292032]
[1745624427219,30.67152032,150.74,150.7,7.33152032]
[1745624428321,30.67152032,150.74,150.69,13.96332032]
[1745624429521,6.6311,150.72,150.69,13.96332032]
[1745624429818,7.33152032,150.73,150.69,6.6318]
[1745624430222,6.6311,150.71,150.69,6.6318]
[1745624432625,6.6309,150.72,150.69,13.96332032]
[1745624433025,6.6309,150.72,150.7,6.6315]
[1745624433427,6.6309,150.72,150.69,7.33152032]
[1745624433624,6.6309,150.72,150.69,13.96332032]
[1745624434928,6.6309,150.72,150.7,6.6315]
[1745624435129,23.34,150.74,150.71,7.33152032]
[1745624435331,23.34,150.74,150.72,7.33152032]
[1745624435626,23.34,150.74,150.72,13.96212032]
[1745624435828,29.97,150.74,150.72,7.33152032]
[1745624436523,23.34,150.77,150.72,7.33152032]
[1745624436728,23.34,150.77,150.75,7.33152032]
[1745624437131,6.6289,150.76,150.75,7.33152032]
[1745624438032,6.6298,150.74,150.73,7.33152032]
[1745624438331,30.67152032,150.77,150.72,7.33152032]
[1745624438536,6.6305,150.73,150.72,7.33152032]
[1745624439029,6.6305,150.73,150.7,6.6312]
[1745624439030,7.33152032,150.75,150.7,7.33152032]
[1745624439230,6.6314,150.71,150.7,7.33152032]
[1745624442330,6.6319,150.7,150.69,7.33152032]
[1745624449741,6.6313,150.71,150.69,7.33152032]
[1745624452842,6.6313,150.71,150.69,13.96342032]
[1745624453842,6.6308,150.72,150.69,13.96342032]
[1745624454143,23.34,150.73,150.7,6.6315]
[1745624454541,29.9706,150.73,150.7,6.6315]
[1745624455442,6.6307,150.72,150.7,6.6315]
[1745624456641,6.6307,150.72,150.69,13.96332032]
[1745624457742,6.6307,150.72,150.7,6.6315]
[1745624458442,6.6307,150.72,150.69,13.96332032]
[1745624459043,23.34,150.73,150.69,7.33152032]
[1745624459243,7.33152032,150.72,150.67,7.33152032]
[1745624459644,6.6323,150.69,150.67,7.33152032]
[1745624460947,6.6323,150.69,150.67,13.96432032]
[1745624462651,6.6323,150.69,150.67,7.33152032]
[1745624462948,6.6323,150.69,150.65,27.2221]
[1745624462949,6.6323,150.69,150.68,7.33152032]
[1745624463147,6.6317,150.7,150.68,7.33152032]
[1745624465250,6.6314,150.71,150.68,13.96372032]
[1745624465446,6.6314,150.71,150.65,27.2221]
[1745624465447,23.34,150.73,150.7,7.33152032]
[1745624466150,6.6316,150.7,150.69,7.33152032]
[1745624466349,6.6316,150.7,150.68,7.33152032]
[1745624466648,7.33152032,150.72,150.67,7.33152032]
[1745624467151,6.6323,150.69,150.67,7.33152032]
[1745624473146,6.6323,150.69,150.67,13.96432032]
[1745624474151,6.6323,150.69,150.68,7.33152032]
[1745624474852,6.6317,150.7,150.68,7.33152032]
[1745624479058,6.6313,150.71,150.69,13.96352032]
[1745624479360,6.6313,150.71,150.69,7.33152032]
[1745624479955,6.6315,150.7,150.69,7.33152032]
[1745624480155,6.6315,150.7,150.68,13.96372032]
[1745624480661,6.6313,150.71,150.69,6.632]
[1745624480859,23.34,150.73,150.7,7.33152032]
[1745624481261,30.65152032,150.76,150.72,13.96212032]
[1745624481762,6.6294,150.75,150.72,13.96212032]
[1745624482064,6.6294,150.75,150.73,7.33152032]
[1745624482461,7.33152032,150.79,150.74,7.33152032]
[1745624482656,23.32,150.79,150.76,7.33152032]
[1745624482860,23.32,150.79,150.75,7.33152032]
[1745624484060,7.33152032,150.77,150.73,7.33152032]
[1745624484562,6.6295,150.75,150.73,7.33152032]
[1745624485061,6.6295,150.75,150.74,7.33152032]
[1745624488365,6.6298,150.74,150.73,7.33152032]
[1745624489166,6.6295,150.75,150.73,7.33152032]
[1745624489565,6.6295,150.75,150.74,7.33152032]
[1745624490768,30.65152032,150.79,150.74,7.33152032]
[1745624491568,6.6288,150.77,150.74,13.96132032]
[1745624492471,6.6289,150.76,150.75,7.33152032]
[1745624492769,6.6289,150.76,150.74,7.33152032]
[1745624493870,6.6289,150.76,150.74,13.96122032]
[1745624499074,6.6289,150.76,150.74,7.33152032]
[1745624500171,30.65152032,150.79,150.74,7.33152032]
[1745624500376,6.6293,150.75,150.74,7.33152032]
[1745624500674,30.65152032,150.79,150.74,7.33152032]
[1745624502280,23.32,150.79,150.77,7.33152032]
[1745624504277,6.6282,150.78,150.77,7.33152032]
[1745624506574,23.32,150.82,150.77,7.33152032]
[1745624506780,23.32,150.82,150.8,7.33152032]
[1745624506977,30.65152032,150.85,150.8,7.33152032]
[1745624507173,6.626,150.83,150.82,7.33152032]
[1745624507877,30.65152032,150.88,150.82,7.33152032]
[1745624508084,30.65152032,150.88,150.84,7.33152032]
[1745624508286,6.6249,150.86,150.84,7.33152032]
[1745624509488,7.33152032,150.87,150.83,7.33152032]
[1745624509785,7.33152032,150.87,150.82,13.95762032]
[1745624510487,6.6252,150.85,150.82,13.95762032]
[1745624510988,6.6247,150.86,150.84,7.33152032]
[1745624511181,23.32,150.88,150.84,7.33152032]
[1745624511388,30.65152032,150.88,150.84,7.33152032]
[1745624511687,23.32,150.88,150.84,7.33152032]
[1745624511889,6.6245,150.87,150.84,7.33152032]
[1745624512187,6.6245,150.87,150.83,13.95702032]
[1745624512391,29.9437,150.88,150.86,7.33152032]
[1745624512685,23.3,150.91,150.86,7.33152032]
[1745624513085,23.3,150.91,150.88,7.33152032]
[1745624513490,23.3,150.91,150.87,7.33152032]
[1745624513689,6.6235,150.89,150.87,7.33152032]
[1745624513889,6.6235,150.89,150.86,7.33152032]
[1745624514492,6.6235,150.89,150.86,13.95602032]
[1745624516692,6.6235,150.89,150.87,7.33152032]
[1745624517794,30.63152032,150.91,150.85,6.6247]
[1745624517995,7.33152032,150.89,150.84,7.33152032]
[1745624518197,7.33152032,150.88,150.83,30.63152032]
[1745624518995,6.6247,150.86,150.83,13.95732032]
[1745624519298,6.6247,150.86,150.84,7.33152032]
[1745624519595,6.6238,150.88,150.85,6.6248]
[1745624519796,6.6238,150.88,150.86,7.33152032]
[1745624519999,6.6238,150.88,150.85,13.95632032]
[1745624520798,6.6241,150.87,150.85,7.33152032]
[1745624521297,7.33152032,150.9,150.85,7.33152032]
[1745624521796,6.6239,150.88,150.85,13.95642032]
[1745624521998,7.33152032,150.9,150.85,7.33152032]
[1745624522299,7.33152032,150.89,150.84,7.33152032]
[1745624522497,7.33152032,150.87,150.83,7.33152032]
[1745624522699,30.63152032,150.87,150.82,7.33152032]
[1745624522900,23.3,150.87,150.82,7.33152032]
[1745624523100,6.6252,150.85,150.82,13.95752032]
[1745624524299,6.6247,150.86,150.83,13.95722032]
[1745624525301,6.6247,150.86,150.84,6.6253]
[1745624526700,29.9241,150.87,150.84,6.6253]
[1745624527099,23.3,150.87,150.84,6.6253]
[1745624528000,29.9243,150.87,150.84,6.6253]
[1745624528597,29.9243,150.87,150.85,7.33152032]
[1745624528901,23.3,150.9,150.86,7.33152032]
[1745624529400,6.6234,150.89,150.86,13.95562032]
[1745624529699,6.6234,150.89,150.86,7.33152032]
[1745624530599,23.3,150.9,150.86,7.33152032]
[1745624530799,23.3,150.93,150.88,7.33152032]
[1745624530998,7.33152032,150.92,150.87,7.33152032]
[1745624531198,6.624,150.88,150.85,13.95622032]
[1745624531399,7.33152032,150.89,150.85,7.33152032]
[1745624531600,6.6252,150.85,150.83,7.33152032]
[1745624531798,7.33152032,150.85,150.8,3.9773]
[1745624531998,30.63152032,150.85,150.76,2.0435]
[1745624532201,6.6266,150.82,150.78,7.33152032]
[1745624532602,30.63152032,150.85,150.79,7.33152032]
[1745624532804,6.6255,150.84,150.81,13.95812032]
[1745624533005,23.3,150.85,150.81,7.33152032]
[1745624533705,6.6255,150.84,150.82,6.6262]
[1745624534506,6.6258,150.83,150.81,7.33152032]
[1745624534708,6.6258,150.83,150.8,7.33152032]
[1745624535209,6.6255,150.84,150.81,6.6266]
[1745624535408,6.6255,150.84,150.81,13.95812032]
[1745624536107,23.3,150.85,150.81,13.95812032]
[1745624536407,6.6259,150.83,150.81,6.6266]
[1745624537506,6.6256,150.84,150.81,6.6266]
[1745624538805,6.6256,150.84,150.81,13.95812032]
[1745624539296,6.6258,150.83,150.81,13.95812032]
[1745624539702,6.6258,150.83,150.8,13.95852032]
[1745624542009,6.6265,150.82,150.8,7.33152032]
[1745624542307,7.33152032,150.83,150.79,7.33152032]
[1745624542509,7.33152032,150.83,150.67,477.1]
[1745624542709,6.629,150.76,150.73,6.6301]
[1745624543009,6.629,150.76,150.72,9.29292032]
[1745624543209,7.33152032,150.77,150.72,9.29292032]
[1745624543508,7.33152032,150.77,150.72,7.33152032]
[1745624543907,6.63,150.74,150.72,7.33152032]
[1745624545910,6.6302,150.73,150.7,41.35662032]
[1745624546110,7.33152032,150.75,150.7,34.72522032]
[1745624546510,6.6301,150.74,150.71,6.6311]
[1745624551212,6.6301,150.74,150.72,6.6306]
[1745624551412,6.6295,150.75,150.72,6.6306]
[1745624551713,6.6295,150.75,150.72,13.96212032]
[1745624555211,6.629,150.76,150.74,7.33152032]
[1745624555913,6.629,150.76,150.74,13.96132032]
[1745624556312,6.6302,150.73,150.71,6.631]
[1745624556611,7.33152032,150.73,150.68,1.9614]
[1745624556811,7.33152032,150.73,150.68,9.29292032]
[1745624557014,7.33152032,150.73,150.68,7.33152032]
[1745624557411,7.33152032,150.71,150.66,30.65152032]
[1745624557615,7.33152032,150.71,150.65,13.96512032]
[1745624557913,30.65152032,150.71,150.65,7.33152032]
[1745624558313,6.6317,150.7,150.66,6.6333]
[1745624560720,6.6317,150.7,150.67,6.6329]
[1745624560914,23.32,150.71,150.69,7.33152032]
[1745624561114,7.33152032,150.74,150.69,7.33152032]
[1745624561320,30.65152032,150.74,150.69,7.33152032]
[1745624561822,7.33152032,150.73,150.68,7.33152032]
[1745624562220,7.33152032,150.72,150.68,7.33152032]
[1745624562721,6.6313,150.71,150.68,13.96372032]
[1745624563221,6.6313,150.71,150.68,6.6322]
[1745624563423,6.6313,150.71,150.68,13.96372032]
[1745624563922,6.6309,150.72,150.69,13.96332032]
[1745624567128,6.6309,150.72,150.7,6.6314]
[1745624567523,6.6309,150.72,150.69,7.33152032]
[1745624567723,6.6309,150.72,150.69,13.96322032]
[1745624569219,6.6309,150.72,150.69,7.33152032]
[1745624570825,6.6309,150.72,150.69,13.96352032]
[1745624571417,6.6312,150.71,150.69,7.33152032]
[1745624572127,6.6312,150.71,150.69,13.96342032]
[1745624573326,6.6312,150.71,150.69,7.33152032]